bitfinex/quotes_BTCUSD_20250215
["timestamp","ask_amount","ask_price","bid_price","bid_amount"]
[1739662489393,0.00021863,97631.0,97630.0,0.3269248]
[1739662489608,0.00021863,97631.0,97630.0,0.3289248]
[1739662490422,0.00021863,97631.0,97630.0,0.3299248]
[1739662492811,0.00021863,97631.0,97630.0,0.3289248]
[1739662493068,0.00021863,97631.0,97630.0,0.3299248]
[1739662493522,0.00021863,97631.0,97630.0,0.3289248]
[1739662493746,0.00021863,97631.0,97630.0,0.3299248]
[1739662495198,0.00021863,97631.0,97630.0,0.3289248]
[1739662495422,0.00021863,97631.0,97630.0,0.3309248]
[1739662495963,0.00021863,97631.0,97630.0,0.3269248]
[1739662496196,0.00021863,97631.0,97630.0,0.3289248]
[1739662496306,0.00021863,97631.0,97630.0,0.3319248]
[1739662510150,0.08201863,97631.0,97630.0,0.1782838]
[1739662510806,0.28345763,97631.0,97630.0,0.0282838]
[1739662511020,0.28345763,97631.0,97630.0,0.0052838]
[1739662511531,0.38596128,97631.0,97630.0,0.0032838]
[1739662511897,0.38596128,97631.0,97630.0,0.0042838]
[1739662512321,0.38596128,97631.0,97630.0,0.0032838]
[1739662512516,0.38596128,97631.0,97630.0,0.0002838]
[1739662512899,0.38596128,97631.0,97630.0,0.0022838]
[1739662513126,0.38596128,97631.0,97630.0,0.0002838]
[1739662513325,0.70756128,97631.0,97630.0,0.0002838]
[1739662520702,0.45141863,97631.0,97630.0,0.0002838]
[1739662525701,0.32181863,97631.0,97630.0,0.1539248]
[1739662530980,0.00021863,97631.0,97630.0,0.3269248]
[1739662547548,0.00021863,97631.0,97630.0,0.4056248]
[1739662549813,0.00021863,97631.0,97630.0,0.4066248]
[1739662553862,0.00021863,97631.0,97630.0,2.5922778]
[1739662554916,0.00021863,97631.0,97630.0,2.5912778]
[1739662555115,0.00021863,97631.0,97630.0,2.5942778]
[1739662555335,0.00021863,97631.0,97630.0,2.5982778]
[1739662559884,0.00021863,97631.0,97630.0,2.5195778]
[1739662567524,0.00021863,97631.0,97630.0,0.3339248]
[1739662567975,0.00021863,97631.0,97630.0,2.5195778]
[1739662572980,0.00021863,97631.0,97630.0,0.5536248]
[1739662573576,0.00021863,97631.0,97630.0,0.4937248]
[1739662573785,0.00021863,97631.0,97630.0,0.4907248]
[1739662573999,0.00021863,97631.0,97630.0,0.4927248]
[1739662574432,0.00021863,97631.0,97630.0,0.4907248]
[1739662574858,0.00021863,97631.0,97630.0,0.4867248]
[1739662575568,0.00021863,97631.0,97630.0,0.4897248]
[1739662575957,0.00021863,97631.0,97630.0,0.4867248]
[1739662576795,0.00021863,97631.0,97630.0,0.4887248]
[1739662584649,0.00021863,97631.0,97630.0,0.3289248]
[1739662585043,0.00021863,97631.0,97630.0,2.5145778]
[1739662596054,0.00021863,97631.0,97630.0,2.5175778]
[1739662599805,0.00021863,97631.0,97630.0,2.62008145]
[1739662601150,0.00021863,97631.0,97630.0,2.61808145]
[1739662601384,0.00021863,97631.0,97630.0,2.62108145]
[1739662601890,0.00021863,97631.0,97630.0,2.61808145]
[1739662602116,0.00021863,97631.0,97630.0,2.62208145]
[1739662604194,0.00021863,97631.0,97630.0,0.43642845]
[1739662604620,0.00021863,97631.0,97630.0,2.62208145]
[1739662613615,0.00021863,97631.0,97630.0,2.74618145]
[1739662619997,0.00021863,97631.0,97630.0,2.74218145]
[1739662620187,0.00021863,97631.0,97630.0,2.74818145]
[1739662620419,0.00021863,97631.0,97630.0,2.74518145]
[1739662620859,0.00021863,97631.0,97630.0,2.75118145]
[1739662621302,0.00021863,97631.0,97630.0,2.74518145]
[1739662621512,0.00021863,97631.0,97630.0,2.75118145]
[1739662621981,0.00021863,97631.0,97630.0,2.70598145]
[1739662622191,0.00021863,97631.0,97630.0,2.62108145]
[1739662622408,0.00021863,97631.0,97630.0,2.62708145]
[1739662624338,0.00021863,97631.0,97630.0,0.44142845]
[1739662624701,0.00021863,97631.0,97630.0,2.62708145]
[1739662625562,0.00021863,97631.0,97630.0,2.07552845]
[1739662626565,0.00021863,97631.0,97630.0,1.97642845]
[1739662627386,0.00021863,97631.0,97630.0,1.80782845]
[1739662634709,0.00021863,97631.0,97630.0,0.44142845]
[1739662634930,0.00021863,97631.0,97630.0,2.56992845]
[1739662635164,0.00021863,97631.0,97630.0,2.61452845]
[1739662635383,0.00021863,97631.0,97630.0,2.37422845]
[1739662635847,0.00021863,97631.0,97630.0,1.16782845]
[1739662636099,0.00021863,97631.0,97630.0,0.3159248]
[1739662636532,0.00021863,97631.0,97630.0,0.3389248]
[1739662636996,0.00021863,97631.0,97630.0,0.3329248]
[1739662637238,0.00021863,97631.0,97630.0,0.3389248]
[1739662638359,0.00021863,97631.0,97630.0,0.3329248]
[1739662638604,0.00021863,97631.0,97630.0,0.3289248]
[1739662638815,0.00021863,97631.0,97630.0,0.3269248]
[1739662639221,0.00021863,97631.0,97630.0,0.3279248]
[1739662652419,0.00021863,97631.0,97630.0,0.3269248]
[1739662653667,0.00021863,97631.0,97630.0,0.3279248]
[1739662662325,0.00021863,97631.0,97630.0,0.3279248]
[1739662705828,0.000142,97640.0,97638.0,0.153628]
[1739662707344,0.001142,97640.0,97638.0,0.153628]
[1739662716050,0.001142,97640.0,97638.0,0.15]
[1739662716270,0.15490728,97639.0,97638.0,0.15]
[1739662716488,0.08178028,97639.0,97630.0,0.0002838]
[1739662716702,0.13393763,97631.0,97630.0,0.0002838]
[1739662716883,0.21443763,97631.0,97630.0,0.0002838]
[1739662718289,0.22472391,97631.0,97630.0,0.0002838]
[1739662718493,0.27072391,97631.0,97630.0,0.0002838]
[1739662718898,0.27172391,97631.0,97630.0,0.0002838]
[1739662719908,0.1275,97631.0,97630.0,0.0002838]
[1739662725881,0.047,97631.0,97630.0,0.1539248]
[1739662729358,0.047,97631.0,97630.0,0.0002838]
[1739662730572,0.047142,97631.0,97630.0,0.0002838]
[1739662730910,0.047142,97631.0,97630.0,0.1539248]
[1739662731119,0.047142,97631.0,97630.0,0.0002838]
[1739662732230,0.047142,97631.0,97630.0,0.1539248]
[1739662741797,0.001142,97631.0,97630.0,0.3039248]
[1739662743157,0.001142,97631.0,97630.0,0.3059248]
[1739662743367,0.000142,97631.0,97630.0,0.3059248]
[1739662743780,0.000142,97631.0,97630.0,0.3289248]
[1739662743998,0.000142,97631.0,97630.0,0.3269248]
[1739662745872,0.000142,97631.0,97630.0,0.3289248]
[1739662755739,0.000142,97631.0,97630.0,0.1522838]
[1739662757095,0.000142,97631.0,97630.0,0.1502838]
[1739662758065,0.001142,97631.0,97630.0,0.1502838]
[1739662763195,0.154781,97631.0,97630.0,0.1502838]
[1739662764645,0.154781,97631.0,97630.0,0.0002838]
[1739662764973,0.15606148,97631.0,97630.0,0.0002838]
[1739662765194,0.17522791,97631.0,97630.0,0.0002838]
[1739662765634,0.22302791,97631.0,97630.0,0.0002838]
[1739662765843,0.22174743,97631.0,97630.0,0.0002838]
[1739662767307,0.25241329,97631.0,97630.0,0.0002838]
[1739662767510,0.35491694,97631.0,97630.0,0.0002838]
[1739662767927,0.75421694,97631.0,97630.0,0.0002838]
[1739662768350,0.75321694,97631.0,97630.0,0.0002838]
[1739662768757,0.75421694,97631.0,97630.0,0.0002838]
[1739662769617,0.72555108,97631.0,97630.0,0.0002838]
[1739662770046,0.72455108,97631.0,97630.0,0.0002838]
[1739662770260,0.72755108,97631.0,97630.0,0.0012838]
[1739662773798,0.70838465,97631.0,97630.0,0.0012838]
[1739662777539,0.72753373,97631.0,97630.0,0.0012838]
[1739662796732,0.64983373,97631.0,97630.0,0.0012838]
[1739662799182,0.68182985,97631.0,97630.0,0.0012838]
[1739662812713,0.77358379,97631.0,97630.0,0.0012838]
[1739662815742,0.68182985,97631.0,97630.0,0.0012838]
[1739662833797,0.4622535,97631.0,97630.0,0.0012838]
[1739662834010,0.43025738,97631.0,97630.0,0.0012838]
[1739662834234,0.58389638,97631.0,97630.0,0.0012838]
[1739662843853,0.61589903,97631.0,97630.0,0.0012838]
[1739662844806,0.61604103,97631.0,97630.0,0.0012838]
[1739662855340,0.59689195,97631.0,97630.0,0.0012838]
[1739662866355,0.3407493,97631.0,97630.0,0.0012838]
[1739662866646,0.30874665,97631.0,97630.0,0.0012838]
[1739662867422,0.30874665,97631.0,97630.0,0.1549248]
[1739662870469,0.30674665,97631.0,97630.0,0.1549248]
[1739662870947,0.30874665,97631.0,97630.0,0.1549248]
[1739662871147,0.30374665,97631.0,97630.0,0.1539248]
[1739662871375,0.30874665,97631.0,97630.0,0.1539248]
[1739662871869,0.30574665,97631.0,97630.0,0.1539248]
[1739662872104,0.30874665,97631.0,97630.0,0.1539248]
[1739662873785,0.30674665,97631.0,97630.0,0.1539248]
[1739662873993,0.30374665,97631.0,97630.0,0.1539248]
[1739662874413,0.30574665,97631.0,97630.0,0.1539248]
[1739662877125,0.30374665,97631.0,97630.0,0.1539248]
[1739662877338,0.30574665,97631.0,97630.0,0.1539248]
[1739662878819,0.30374665,97631.0,97630.0,0.1539248]
[1739662881083,0.30574665,97631.0,97630.0,0.1539248]
[1739662885941,0.30374665,97631.0,97630.0,0.1539248]
[1739662887445,0.30474665,97631.0,97630.0,0.1539248]
[1739662887806,0.30374665,97631.0,97630.0,0.1539248]
[1739662888006,0.30474665,97631.0,97630.0,0.1539248]
[1739662903921,0.001142,97631.0,97630.0,0.1539248]
[1739662907429,0.001142,97631.0,97630.0,0.2296248]
[1739662910313,0.000142,97631.0,97630.0,0.2306248]
[1739662911216,0.000142,97631.0,97630.0,0.25145382]
[1739662918422,0.000142,97631.0,97630.0,0.2306248]
[1739662918622,0.000142,97631.0,97630.0,0.1549248]
[1739662946669,0.153781,97631.0,97630.0,0.0002838]
[1739662947055,0.15606137,97631.0,97630.0,0.0012838]
[1739662947258,0.15606137,97631.0,97630.0,0.0002838]
[1739662947462,0.64126967,97631.0,97630.0,0.0002838]
[1739662947678,0.71718015,97631.0,97630.0,0.0002838]
[1739662948193,0.71618015,97631.0,97630.0,0.0002838]
[1739662948616,0.71918015,97631.0,97630.0,0.0002838]
[1739662948970,0.71618015,97631.0,97630.0,0.0002838]
[1739662949170,0.71918015,97631.0,97630.0,0.0022838]
[1739662950250,0.71918015,97631.0,97630.0,0.0012838]
[1739662950476,0.72118015,97631.0,97630.0,0.0022838]
[1739662953240,0.6891893,97631.0,97630.0,0.0022838]
[1739662960271,0.6871893,97631.0,97630.0,0.0012838]
[1739662960759,0.6891893,97631.0,97630.0,0.0012838]
[1739662961009,0.6861893,97631.0,97630.0,0.0002838]
[1739662961239,0.6891893,97631.0,97630.0,0.0012838]
[1739662971063,0.6861893,97631.0,97630.0,0.0002838]
[1739662971278,0.6891893,97631.0,97630.0,0.0012838]
[1739662972161,0.6871893,97631.0,97630.0,0.0012838]
[1739662973141,0.6891893,97631.0,97630.0,0.0012838]
[1739662977205,0.72112048,97631.0,97630.0,0.0012838]
[1739662981293,0.67592048,97631.0,97630.0,0.0012838]
[1739662981483,0.59682048,97631.0,97630.0,0.0012838]
[1739662990716,0.67492048,97631.0,97630.0,0.0012838]
[1739662993010,0.72472048,97631.0,97630.0,0.0012838]
[1739662993668,0.73472048,97631.0,97630.0,0.0012838]
[1739662993927,0.73172048,97631.0,97630.0,0.0002838]
[1739662994164,0.73472048,97631.0,97630.0,0.0012838]
[1739662994597,0.73272048,97631.0,97630.0,0.0012838]
[1739662995010,0.73872048,97631.0,97630.0,0.0022838]
[1739662997052,0.75902946,97631.0,97630.0,0.0022838]
[1739663002741,0.76902946,97631.0,97630.0,0.0022838]
[1739663006365,0.76907338,97631.0,97630.0,0.0022838]
[1739663019193,0.87157703,97631.0,97630.0,0.0022838]
[1739663019423,0.76907338,97631.0,97630.0,0.0022838]
[1739663024268,0.78827479,97631.0,97630.0,0.0022838]
[1739663028659,0.77927479,97631.0,97630.0,0.0002838]
[1739663029068,0.79227479,97631.0,97630.0,0.0022838]
[1739663031636,0.153669,97612.0,97611.0,0.000284]
[1739663031850,0.28810383,97612.0,97611.0,0.000284]
[1739663033585,0.59170848,97612.0,97611.0,0.000284]
[1739663034886,0.60170848,97612.0,97611.0,0.000284]
[1739663035454,0.59470848,97612.0,97611.0,0.000284]
[1739663035655,0.59170848,97612.0,97611.0,0.000284]
[1739663035891,0.60570848,97612.0,97611.0,0.000284]
[1739663037098,0.59870848,97612.0,97611.0,0.000284]
[1739663037559,0.60570848,97612.0,97611.0,0.000284]
[1739663047870,0.62489303,97612.0,97611.0,0.000284]
[1739663053083,0.60570848,97612.0,97611.0,0.000284]
[1739663055280,0.62489625,97612.0,97611.0,0.000284]
[1739663056247,0.60570848,97612.0,97611.0,0.000284]
[1739663059154,0.62490456,97612.0,97611.0,0.000284]
[1739663061418,0.60570848,97612.0,97611.0,0.000284]
[1739663063865,0.6249219,97612.0,97611.0,0.000284]
[1739663066775,0.7206528,97612.0,97611.0,0.000284]
[1739663068134,0.6249219,97612.0,97611.0,0.000284]
[1739663069555,0.60570848,97612.0,97611.0,0.000284]
[1739663072126,0.61590933,97612.0,97611.0,0.000284]
[1739663086675,0.70900933,97612.0,97611.0,0.000284]
[1739663086896,0.71900933,97612.0,97611.0,0.000284]
[1739663090962,0.85900933,97612.0,97611.0,0.000284]
[1739663091150,0.76590933,97612.0,97611.0,0.000284]
[1739663091430,0.77590933,97612.0,97611.0,0.000284]
[1739663091951,0.61590933,97612.0,97611.0,0.000284]
[1739663092210,0.62590933,97612.0,97611.0,0.000284]
[1739663092657,0.61890933,97612.0,97611.0,0.000284]
[1739663093338,0.68159608,97612.0,97611.0,0.000284]
[1739663093550,0.67459608,97612.0,97611.0,0.000284]
[1739663093763,0.68159608,97612.0,97611.0,0.000284]
[1739663093993,0.62190933,97612.0,97611.0,0.000284]
[1739663094271,0.62890933,97612.0,97611.0,0.000284]
[1739663094936,0.63590933,97612.0,97611.0,0.000284]
[1739663095164,0.62890933,97612.0,97611.0,0.000284]
[1739663095358,0.63590933,97612.0,97611.0,0.000284]
[1739663096256,0.78590933,97612.0,97611.0,0.000284]
[1739663099993,0.81941296,97612.0,97611.0,0.000284]
[1739663101156,0.78590933,97612.0,97611.0,0.000284]
[1739663114285,0.80510538,97612.0,97611.0,0.000284]
[1739663115309,0.79810538,97612.0,97611.0,0.000284]
[1739663115684,0.17,97611.0,97610.0,1e-06]
[1739663115895,0.48238673,97611.0,97610.0,1e-06]
[1739663116116,0.48110583,97611.0,97610.0,1e-06]
[1739663116326,0.58360948,97611.0,97610.0,1e-06]
[1739663116765,0.88721413,97611.0,97610.0,1e-06]
[1739663117220,0.78471048,97611.0,97610.0,1e-06]
[1739663117672,0.79171048,97611.0,97610.0,1e-06]
[1739663118099,0.79871048,97611.0,97610.0,1e-06]
[1739663119193,0.77571048,97611.0,97610.0,1e-06]
[1739663120301,0.76571048,97611.0,97610.0,1e-06]
[1739663120528,0.76171048,97611.0,97610.0,1e-06]
[1739663120726,0.76871048,97611.0,97610.0,1e-06]
[1739663120953,0.60571048,97611.0,97610.0,1e-06]
[1739663121177,0.61571048,97611.0,97610.0,1e-06]
[1739663122079,0.63490135,97611.0,97610.0,1e-06]
[1739663123192,0.61571048,97611.0,97610.0,1e-06]
[1739663123901,0.61585248,97611.0,97610.0,1e-06]
[1739663125207,0.62585248,97611.0,97610.0,1e-06]
[1739663126052,0.75135613,97611.0,97610.0,1e-06]
[1739663126298,0.64885248,97611.0,97610.0,1e-06]
[1739663126505,0.63485248,97611.0,97610.0,1e-06]
[1739663126962,0.64185248,97611.0,97610.0,1e-06]
[1739663127389,0.64885248,97611.0,97610.0,1e-06]
[1739663139136,0.61185248,97611.0,97610.0,1e-06]
[1739663139350,0.61885248,97611.0,97610.0,1e-06]
[1739663139547,0.62585248,97611.0,97610.0,1e-06]
[1739663139749,0.61885248,97611.0,97610.0,1e-06]
[1739663139943,0.76185248,97611.0,97610.0,1e-06]
[1739663140125,0.76885248,97611.0,97610.0,1e-06]
[1739663140715,0.76585248,97611.0,97610.0,1e-06]
[1739663140924,0.75585248,97611.0,97610.0,1e-06]
[1739663141137,0.76585248,97611.0,97610.0,1e-06]
[1739663141774,0.75885248,97611.0,97610.0,1e-06]
[1739663141991,0.76585248,97611.0,97610.0,1e-06]
[1739663150360,0.75585248,97611.0,97610.0,1e-06]
[1739663150570,0.76585248,97611.0,97610.0,1e-06]
[1739663155987,0.98185613,97611.0,97605.0,0.0002838]
[1739663156206,0.98185613,97611.0,97605.0,8e-07]
[1739663156207,0.44918265,97606.0,97605.0,8e-07]
[1739663156421,0.48111383,97606.0,97605.0,8e-07]
[1739663156845,0.86521848,97606.0,97605.0,8e-07]
[1739663157271,0.87221848,97606.0,97605.0,8e-07]
[1739663157694,0.86521848,97606.0,97605.0,8e-07]
[1739663157922,0.87221848,97606.0,97605.0,8e-07]
[1739663158137,0.87921848,97606.0,97605.0,8e-07]
[1739663161773,0.92167623,97606.0,97605.0,8e-07]
[1739663162214,0.94181168,97606.0,97605.0,8e-07]
[1739663164979,0.94181168,97606.0,97605.0,8e-07]
[1739663167910,0.918514,97606.0,97605.0,8e-07]
[1739663169182,0.911514,97606.0,97605.0,8e-07]
[1739663169401,0.904514,97606.0,97605.0,8e-07]
[1739663169608,0.918514,97606.0,97605.0,8e-07]
[1739663170178,0.918656,97606.0,97605.0,8e-07]
[1739663174105,0.153726,97576.0,97575.0,0.08195252]
[1739663174295,0.5598343,97576.0,97575.0,0.08195252]
[1739663174697,0.153729,97574.0,97573.0,0.0496]
[1739663174909,0.25623265,97574.0,97573.0,0.0496]
[1739663175239,0.25627653,97574.0,97573.0,0.0496]
[1739663175453,0.2754366,97574.0,97573.0,0.0496]
[1739663176682,0.2814366,97574.0,97573.0,0.0496]
[1739663176892,0.31335203,97574.0,97573.0,0.0496]
[1739663177104,0.31735203,97574.0,97573.0,0.0496]
[1739663179226,0.62095668,97574.0,97573.0,0.0496]
[1739663181226,0.63053924,97574.0,97573.0,0.0496]
[1739663181454,0.63053924,97574.0,97573.0,0.049884]
[1739663182337,0.63053924,97574.0,97573.0,0.000284]
[1739663182974,0.62095668,97574.0,97573.0,0.000284]
[1739663183453,0.61495668,97574.0,97573.0,0.000284]
[1739663183672,0.61795668,97574.0,97573.0,0.000284]
[1739663183901,0.62495668,97574.0,97573.0,0.000284]
[1739663185722,0.63455411,97574.0,97573.0,0.000284]
[1739663187304,0.153745,97564.0,97563.0,0.1208838]
[1739663187527,0.25624865,97564.0,97563.0,0.1208838]
[1739663188190,0.27540872,97564.0,97563.0,0.1208838]
[1739663188927,0.28240872,97564.0,97563.0,0.1208838]
[1739663189149,0.31437591,97564.0,97563.0,0.1208838]
[1739663189377,0.32137591,97564.0,97563.0,0.1208838]
[1739663189599,0.33097334,97564.0,97563.0,0.1208838]
[1739663190800,0.34118681,97564.0,97563.0,0.1208838]
[1739663191251,0.64479146,97564.0,97563.0,0.1208838]
[1739663195175,0.63457799,97564.0,97563.0,0.1208838]
[1739663195422,0.63457799,97564.0,97563.0,0.1211678]
[1739663196425,0.62498056,97564.0,97563.0,0.1211678]
[1739663201953,0.71689596,97564.0,97563.0,0.1211678]
[1739663202620,0.70989596,97564.0,97563.0,0.1211678]
[1739663203027,0.71689596,97564.0,97563.0,0.1211678]
[1739663204216,0.71689596,97564.0,97563.0,0.045684]
[1739663205154,0.62498056,97564.0,97563.0,0.045684]
[1739663205381,0.61798056,97564.0,97563.0,0.045684]
[1739663205611,0.62758431,97564.0,97563.0,0.045684]
[1739663205854,0.62758431,97564.0,97563.0,0.000284]
[1739663206322,0.63458431,97564.0,97563.0,0.000284]
[1739663207584,0.62758431,97564.0,97563.0,0.000284]
[1739663207828,0.62058431,97564.0,97563.0,0.000284]
[1739663208076,0.62758431,97564.0,97563.0,0.000284]
[1739663208317,0.63458431,97564.0,97563.0,0.000284]
[1739663211399,0.62498056,97564.0,97563.0,0.000284]
[1739663214617,0.63458555,97564.0,97563.0,0.000284]
[1739663215758,0.62498056,97564.0,97563.0,0.000284]
[1739663230787,0.60582049,97564.0,97563.0,0.000284]
[1739663246806,0.34957184,97564.0,97563.0,0.28213]
[1739663247009,0.50331684,97564.0,97563.0,0.128384]
[1739663247218,0.50331684,97564.0,97563.0,0.049984]
[1739663247658,0.49631684,97564.0,97563.0,0.049984]
[1739663247891,0.47134965,97564.0,97563.0,0.049984]
[1739663248130,0.46434965,97564.0,97563.0,0.049984]
[1739663248591,0.31760465,97564.0,97563.0,0.049984]
[1739663248794,0.46434965,97564.0,97563.0,0.049984]
[1739663249003,0.47134965,97564.0,97563.0,0.049984]
[1739663249216,0.4963672,97564.0,97563.0,0.049984]
[1739663249433,0.5033672,97564.0,97563.0,0.049984]
[1739663249651,0.47134965,97564.0,97563.0,0.049984]
[1739663249864,0.46434965,97564.0,97563.0,0.049984]
[1739663250927,0.47134965,97564.0,97563.0,0.049984]
[1739663251566,0.46434965,97564.0,97563.0,0.049984]
[1739663251787,0.47134965,97564.0,97563.0,0.049984]
[1739663252660,0.31760465,97564.0,97563.0,0.049984]
[1739663254142,0.31760465,97564.0,97563.0,0.27873]
[1739663255262,0.30360465,97564.0,97563.0,0.27873]
[1739663255460,0.31060465,97564.0,97563.0,0.27873]
[1739663255895,0.30760465,97564.0,97563.0,0.27873]
[1739663256247,0.31360465,97564.0,97563.0,0.27873]
[1739663256448,0.01,97564.0,97563.0,0.27873]
[1739663276956,0.01,97564.0,97563.0,0.20373]
[1739663283219,0.004,97564.0,97563.0,0.20373]
[1739663283697,0.007,97564.0,97563.0,0.20373]
[1739663284182,0.000142,97570.0,97563.0,0.049984]
[1739663284421,0.000142,97570.0,97569.0,0.153737]
[1739663285432,0.003142,97570.0,97569.0,0.153737]
[1739663286577,0.006142,97570.0,97569.0,0.153737]
[1739663286946,0.003142,97570.0,97569.0,0.153737]
[1739663287308,0.008142,97570.0,97569.0,0.153737]
[1739663290395,0.008142,97570.0,97569.0,0.380937]
[1739663290634,0.008142,97570.0,97569.0,0.426637]
[1739663291094,0.003142,97570.0,97569.0,0.426637]
[1739663291317,0.000142,97570.0,97569.0,0.426637]
[1739663291580,0.002142,97570.0,97569.0,0.426637]
[1739663292723,0.002142,97570.0,97569.0,2.61229]
[1739663293008,0.000142,97570.0,97569.0,2.61229]
[1739663293417,0.001142,97570.0,97569.0,2.61229]
[1739663293866,0.000142,97570.0,97569.0,2.61229]
[1739663294112,0.000142,97570.0,97569.0,2.61429]
[1739663294344,0.000142,97570.0,97569.0,2.61529]
[1739663294566,0.000142,97570.0,97569.0,2.61429]
[1739663295055,0.000142,97570.0,97569.0,2.61629]
[1739663296938,0.000142,97570.0,97569.0,2.63715209]
[1739663306513,0.000142,97570.0,97569.0,2.76265574]
[1739663310204,0.000142,97570.0,97569.0,2.76293974]
[1739663317305,4.388e-05,97574.0,97573.0,0.303731]
[1739663317505,4.388e-05,97574.0,97573.0,2.67408765]
[1739663318424,4.388e-05,97574.0,97573.0,2.67708765]
[1739663320034,4.388e-05,97574.0,97573.0,2.70308765]
[1739663322984,0.00018588,97574.0,97573.0,2.70308765]
[1739663326474,0.00018588,97574.0,97573.0,2.62088765]
[1739663327351,0.00018588,97574.0,97573.0,1.06583465]
[1739663327744,0.00018588,97574.0,97573.0,0.81833465]
[1739663328582,0.00018588,97574.0,97573.0,0.587231]
[1739663328787,0.00018588,97574.0,97573.0,0.309731]
[1739663336027,0.00018588,97574.0,97573.0,0.306731]
[1739663336525,0.00018588,97574.0,97573.0,0.308731]
[1739663336954,0.00018588,97574.0,97573.0,0.306731]
[1739663337174,0.00018588,97574.0,97573.0,0.308731]
[1739663360959,0.00018588,97574.0,97573.0,0.303731]
[1739663361261,0.00018588,97574.0,97573.0,0.306731]
[1739663372512,0.00018588,97574.0,97573.0,0.153]
[1739663373203,0.00018588,97574.0,97573.0,0.152]
[1739663373417,0.00018588,97574.0,97573.0,0.15]
[1739663373629,0.00018588,97574.0,97573.0,0.153]
[1739663374046,0.00018588,97574.0,97573.0,0.323691]
[1739663375026,0.00018588,97574.0,97573.0,0.324691]
[1739663375439,0.00018588,97574.0,97573.0,0.326691]
[1739663377598,0.00018588,97574.0,97573.0,0.17296]
[1739663382042,0.00018588,97574.0,97573.0,0.326691]
[1739663382569,0.00018588,97574.0,97573.0,0.17296]
[1739663385561,0.00018588,97574.0,97573.0,0.326691]
[1739663386623,0.00018588,97574.0,97573.0,0.17296]
[1739663391626,0.00018588,97574.0,97573.0,0.17096]
[1739663391772,0.00018588,97574.0,97573.0,0.16996]
[1739663391971,0.00118588,97574.0,97573.0,0.16996]
[1739663392205,0.00418588,97574.0,97573.0,0.16996]
[1739663395299,0.15791488,97574.0,97573.0,0.01996]
[1739663409970,0.26041853,97574.0,97573.0,0.01996]
[1739663410177,0.33931853,97574.0,97573.0,0.01996]
[1739663410828,0.33631853,97574.0,97573.0,0.01996]
[1739663410953,0.64292318,97574.0,97573.0,0.01996]
[1739663411398,0.63992318,97574.0,97573.0,0.01996]
[1739663411604,0.63892318,97574.0,97573.0,0.01996]
[1739663411964,0.64492318,97574.0,97573.0,0.01996]
[1739663412378,0.64392318,97574.0,97573.0,0.01996]
[1739663412801,0.64592318,97574.0,97573.0,0.01996]
[1739663415488,0.64592318,97574.0,97573.0,0.01996]
[1739663418575,0.67788499,97574.0,97573.0,0.01996]
[1739663419037,0.67588499,97574.0,97573.0,0.01996]
[1739663419257,0.67088499,97574.0,97573.0,0.01996]
[1739663419413,0.67788499,97574.0,97573.0,0.01996]
[1739663419817,0.68488499,97574.0,97573.0,0.01996]
[1739663420446,0.69188499,97574.0,97573.0,0.01996]
[1739663421022,0.68488499,97574.0,97573.0,0.01996]
[1739663421441,0.69188499,97574.0,97573.0,0.01996]
[1739663421840,0.67788499,97574.0,97573.0,0.01996]
[1739663422041,0.68488499,97574.0,97573.0,0.01996]
[1739663433171,0.77684133,97574.0,97573.0,0.01996]
[1739663434513,0.153734,97571.0,97570.0,0.000284]
[1739663434720,0.28948075,97571.0,97570.0,0.000284]
[1739663434858,0.59180411,97571.0,97570.0,0.000284]
[1739663435762,0.59880411,97571.0,97570.0,0.000284]
[1739663436899,0.60580411,97571.0,97570.0,0.000284]
[1739663451032,0.60594611,97571.0,97570.0,0.000284]
[1739663455800,0.30234146,97571.0,97570.0,0.000284]
[1739663492213,0.32156148,97571.0,97570.0,0.000284]
[1739663493510,0.30234146,97571.0,97570.0,0.000284]
[1739663521092,0.62394146,97571.0,97570.0,0.000284]
[1739663546994,0.36770381,97571.0,97570.0,0.128584]
[1739663547205,0.335742,97571.0,97570.0,0.128584]
[1739663547871,0.321742,97571.0,97570.0,0.128584]
[1739663548086,0.328742,97571.0,97570.0,0.128584]
[1739663548510,0.321742,97571.0,97570.0,0.128584]
[1739663548816,0.330742,97571.0,97570.0,0.128584]
[1739663549171,0.323742,97571.0,97570.0,0.128584]
[1739663549416,0.325742,97571.0,97570.0,0.128584]
[1739663550010,0.323742,97571.0,97570.0,0.128584]
[1739663550164,0.325742,97571.0,97570.0,0.128584]
[1739663550575,0.004142,97571.0,97570.0,0.128584]
[1739663551042,0.002142,97571.0,97570.0,0.128584]
[1739663551456,0.004142,97571.0,97570.0,0.128584]
[1739663551630,0.002142,97571.0,97570.0,0.128584]
[1739663551807,0.004142,97571.0,97570.0,0.128584]
[1739663552033,0.006142,97571.0,97570.0,0.282319]
[1739663553280,0.004142,97571.0,97570.0,0.282319]
[1739663553468,0.002142,97571.0,97570.0,0.282319]
[1739663553706,0.004142,97571.0,97570.0,0.282319]
[1739663553922,0.002142,97571.0,97570.0,0.282319]
[1739663554314,0.004142,97571.0,97570.0,0.282319]
[1739663554532,0.002142,97571.0,97570.0,0.282319]
[1739663555143,0.004142,97571.0,97570.0,0.282319]
[1739663555770,0.002142,97571.0,97570.0,0.282319]
[1739663556200,0.004142,97571.0,97570.0,0.282319]
[1739663559820,0.000142,97571.0,97570.0,0.282319]
[1739663560041,0.002142,97571.0,97570.0,0.282319]
[1739663561036,0.005142,97571.0,97570.0,0.282319]
[1739663576590,0.00018588,97574.0,97573.0,0.153731]
[1739663577664,0.00418588,97574.0,97573.0,0.153731]
[1739663578103,0.00718588,97574.0,97573.0,0.153731]
[1739663584704,0.00718588,97574.0,97573.0,0.232431]
[1739663586406,0.00418588,97574.0,97573.0,0.232431]
[1739663586593,0.00018588,97574.0,97573.0,0.232431]
[1739663586787,0.00118588,97574.0,97573.0,0.232431]
[1739663608273,0.00118588,97574.0,97573.0,0.153731]
[1739663662095,0.00118588,97574.0,97573.0,0.153731]
[1739663770394,0.00118588,97574.0,97571.0,0.205261]
[1739663770395,0.198732,97572.0,97571.0,0.000284]
[1739663770627,0.27971318,97572.0,97571.0,0.000284]
[1739663770823,0.31045363,97572.0,97571.0,0.000284]
[1739663771491,0.278432,97572.0,97571.0,0.000284]
[1739663772511,0.290432,97572.0,97571.0,0.000284]
[1739663773143,0.289432,97572.0,97571.0,0.000284]
[1739663773367,0.1287,97572.0,97571.0,0.000284]
[1739663773565,0.1427,97572.0,97571.0,0.000284]
[1739663773975,0.1357,97572.0,97571.0,0.000284]